[Event "Titled Tuesday Blitz March 01 Early 2022"]
[White "Moskvin, Anatoly"]
[Black "Oparin, Grigoriy"]
[WhiteFideId "24199990"]
[BlackFideId "24125890"]
[WhiteElo "2079"]
[BlackElo "2685"]
[Result "0-1"]
[Round "02"]
[TimeControl "180+1"]
[Date "2022.03.01"]
[WhiteClock "0:00:04"]
[BlackClock "0:01:35"]

1. e4 {[%clk 0:03:00]}  c5 {[%clk 0:02:59]} 2. Nf3 {[%clk 0:03:01]}  d6 {[%clk 0:03:00]} 3. d4 {[%clk 0:03:00]}  cxd4 {[%clk 0:03:01]} 4. Nxd4 {[%clk 0:03:01]}  Nf6 {[%clk 0:03:02]} 5. f3 {[%clk 0:03:01]}  e5 {[%clk 0:03:01]} 6. Bb5+ {[%clk 0:03:01]}  Nbd7 {[%clk 0:02:55]} 7. Ne2 {[%clk 0:03:01]}  a6 {[%clk 0:02:55]} 8. Bxd7+ {[%clk 0:02:58]}  Bxd7 {[%clk 0:02:54]} 9. O-O {[%clk 0:02:58]}  Be7 {[%clk 0:02:54]} 10. c4 {[%clk 0:02:58]}  b5 {[%clk 0:02:54]} 11. Na3 {[%clk 0:02:53]}  Qb6+ {[%clk 0:02:52]} 12. Kh1 {[%clk 0:02:53]}  O-O {[%clk 0:02:52]} 13. Qd3 {[%clk 0:02:52]}  Rfc8 {[%clk 0:02:49]} 14. Be3 {[%clk 0:02:52]}  bxc4 {[%clk 0:02:43]} 15. Nxc4 {[%clk 0:02:38]}  Qb5 {[%clk 0:02:44]} 16. b3 {[%clk 0:02:33]}  Be6 {[%clk 0:02:44]} 17. Rfc1 {[%clk 0:02:25]}  d5 {[%clk 0:02:44]} 18. Nxe5 {[%clk 0:02:18]}  Qxd3 {[%clk 0:02:44]} 19. Nxd3 {[%clk 0:02:18]}  dxe4 {[%clk 0:02:45]} 20. fxe4 {[%clk 0:02:19]}  Nxe4 {[%clk 0:02:46]} 21. Nd4 {[%clk 0:02:18]}  Bd5 {[%clk 0:02:38]} 22. Nf4 {[%clk 0:02:09]}  Bb7 {[%clk 0:02:38]} 23. Rxc8+ {[%clk 0:02:02]}  Rxc8 {[%clk 0:02:38]} 24. Rc1 {[%clk 0:02:03]}  Rxc1+ {[%clk 0:02:22]} 25. Bxc1 {[%clk 0:02:03]}  g6 {[%clk 0:02:17]} 26. Kg1 {[%clk 0:01:54]}  Nc3 {[%clk 0:01:59]} 27. Kf2 {[%clk 0:01:13]}  Nxa2 {[%clk 0:01:58]} 28. Bb2 {[%clk 0:01:09]}  Nb4 {[%clk 0:01:57]} 29. g3 {[%clk 0:01:08]}  f6 {[%clk 0:01:55]} 30. Ke2 {[%clk 0:01:00]}  Kf7 {[%clk 0:01:55]} 31. Nfe6 {[%clk 0:00:46]}  h5 {[%clk 0:01:50]} 32. Nc7 {[%clk 0:00:45]}  Nd5 {[%clk 0:01:48]} 33. Nxd5 {[%clk 0:00:38]}  Bxd5 {[%clk 0:01:49]} 34. Bc3 {[%clk 0:00:38]}  g5 {[%clk 0:01:46]} 35. b4 {[%clk 0:00:31]}  Kg6 {[%clk 0:01:45]} 36. Kf2 {[%clk 0:00:28]}  Bd6 {[%clk 0:01:43]} 37. h4 {[%clk 0:00:22]}  gxh4 {[%clk 0:01:38]} 38. gxh4 {[%clk 0:00:23]}  f5 {[%clk 0:01:37]} 39. Bd2 {[%clk 0:00:21]}  f4 {[%clk 0:01:37]} 40. Ne2 {[%clk 0:00:16]}  Kf5 {[%clk 0:01:36]} 41. Bc3 {[%clk 0:00:14]}  Kg4 {[%clk 0:01:36]} 42. Bd2 {[%clk 0:00:14]}  f3 {[%clk 0:01:34]} 43. Nd4 {[%clk 0:00:13]}  Bg3+ {[%clk 0:01:35]} 44. Kg1 {[%clk 0:00:06]}  f2+ {[%clk 0:01:34]} 45. Kf1 {[%clk 0:00:04]}  Bc4+ {[%clk 0:01:35]} 0-1


[Site "https://www.chess.com"]

[Event "Titled Tuesday Blitz March 01 Early 2022"]
[White "Muhammed, Shuaau"]
[Black "Samunenkov, Ihor"]
[WhiteFideId "16700406"]
[BlackFideId "14187086"]
[WhiteElo "1674"]
[BlackElo "2406"]
[Result "0-1"]
[Round "02"]
[TimeControl "180+1"]
[Date "2022.03.01"]
[WhiteClock "0:00:01"]
[BlackClock "0:00:03"]

1. e4 {[%clk 0:03:00]}  c5 {[%clk 0:02:58]} 2. Nf3 {[%clk 0:03:00]}  Nc6 {[%clk 0:02:58]} 3. Nc3 {[%clk 0:03:01]}  g6 {[%clk 0:02:58]} 4. Bb5 {[%clk 0:02:59]}  Bg7 {[%clk 0:02:58]} 5. Bxc6 {[%clk 0:02:59]}  dxc6 {[%clk 0:02:58]} 6. O-O {[%clk 0:03:00]}  Nf6 {[%clk 0:02:57]} 7. d3 {[%clk 0:03:00]}  Bg4 {[%clk 0:02:57]} 8. h3 {[%clk 0:03:00]}  Bxf3 {[%clk 0:02:57]} 9. Qxf3 {[%clk 0:03:01]}  Nd7 {[%clk 0:02:57]} 10. Qe2 {[%clk 0:03:00]}  Nf8 {[%clk 0:02:45]} 11. f4 {[%clk 0:02:59]}  Ne6 {[%clk 0:02:45]} 12. Be3 {[%clk 0:02:51]}  Nd4 {[%clk 0:02:42]} 13. Qd1 {[%clk 0:02:49]}  Qd7 {[%clk 0:02:37]} 14. Rb1 {[%clk 0:02:44]}  O-O {[%clk 0:02:30]} 15. Ne2 {[%clk 0:02:44]}  Rad8 {[%clk 0:02:23]} 16. Nxd4 {[%clk 0:02:35]}  Bxd4 {[%clk 0:02:20]} 17. Qe2 {[%clk 0:02:33]}  Qe6 {[%clk 0:02:14]} 18. b3 {[%clk 0:02:25]}  Qd6 {[%clk 0:01:27]} 19. f5 {[%clk 0:02:22]}  Bxe3+ {[%clk 0:01:27]} 20. Qxe3 {[%clk 0:02:22]}  Qd4 {[%clk 0:01:27]} 21. Qxd4 {[%clk 0:02:13]}  Rxd4 {[%clk 0:01:28]} 22. f6 {[%clk 0:02:05]}  exf6 {[%clk 0:01:04]} 23. Rxf6 {[%clk 0:02:06]}  Re8 {[%clk 0:01:02]} 24. Rbf1 {[%clk 0:02:06]}  Rd7 {[%clk 0:01:02]} 25. a4 {[%clk 0:02:01]}  Kg7 {[%clk 0:01:00]} 26. R6f3 {[%clk 0:01:59]}  Re6 {[%clk 0:00:58]} 27. g4 {[%clk 0:01:59]}  h6 {[%clk 0:00:58]} 28. Kg2 {[%clk 0:01:59]}  b5 {[%clk 0:00:56]} 29. axb5 {[%clk 0:01:58]}  cxb5 {[%clk 0:00:56]} 30. Ra1 {[%clk 0:01:59]}  c4 {[%clk 0:00:56]} 31. bxc4 {[%clk 0:01:53]}  bxc4 {[%clk 0:00:56]} 32. Kf2 {[%clk 0:01:39]}  cxd3 {[%clk 0:00:50]} 33. cxd3 {[%clk 0:01:40]}  Rb6 {[%clk 0:00:49]} 34. Ra2 {[%clk 0:01:40]}  Rb3 {[%clk 0:00:46]} 35. Ke2 {[%clk 0:01:40]}  Kf8 {[%clk 0:00:39]} 36. Rd2 {[%clk 0:01:40]}  Rb4 {[%clk 0:00:28]} 37. Ke3 {[%clk 0:01:38]}  Rb3 {[%clk 0:00:29]} 38. Ke2 {[%clk 0:01:38]}  Rb4 {[%clk 0:00:27]} 39. Ke3 {[%clk 0:01:38]}  Rbd4 {[%clk 0:00:26]} 40. Ke2 {[%clk 0:01:31]}  a5 {[%clk 0:00:25]} 41. Rc2 {[%clk 0:01:29]}  a4 {[%clk 0:00:24]} 42. Rc4 {[%clk 0:01:28]}  Rxc4 {[%clk 0:00:23]} 43. dxc4 {[%clk 0:01:29]}  Rd4 {[%clk 0:00:23]} 44. c5 {[%clk 0:01:13]}  Ke7 {[%clk 0:00:17]} 45. Rc3 {[%clk 0:01:09]}  Rxe4+ {[%clk 0:00:13]} 46. Kd3 {[%clk 0:01:08]}  Rf4 {[%clk 0:00:12]} 47. Ke3 {[%clk 0:01:09]}  Rb4 {[%clk 0:00:12]} 48. Kd2 {[%clk 0:00:50]}  Kd7 {[%clk 0:00:06]} 49. c6+ {[%clk 0:00:44]}  Kc7 {[%clk 0:00:06]} 50. Kc2 {[%clk 0:00:34]}  Rb3 {[%clk 0:00:04]} 51. Rc4 {[%clk 0:00:26]}  Rxh3 {[%clk 0:00:05]} 52. Rxa4 {[%clk 0:00:26]}  Kxc6 {[%clk 0:00:05]} 53. Rf4 {[%clk 0:00:22]}  Kd5 {[%clk 0:00:03]} 54. Rxf7 {[%clk 0:00:22]}  Ke4 {[%clk 0:00:03]} 55. Kd2 {[%clk 0:00:16]}  Rh2+ {[%clk 0:00:03]} 56. Ke1 {[%clk 0:00:16]}  Rg2 {[%clk 0:00:03]} 57. Rh7 {[%clk 0:00:15]}  Kf3 {[%clk 0:00:03]} 58. Rxh6 {[%clk 0:00:14]}  Rg1+ {[%clk 0:00:03]} 59. Kd2 {[%clk 0:00:14]}  Rxg4 {[%clk 0:00:04]} 60. Rh3+ {[%clk 0:00:12]}  Kg2 {[%clk 0:00:04]} 61. Rb3 {[%clk 0:00:09]}  Re4 {[%clk 0:00:03]} 62. Rb5 {[%clk 0:00:06]}  Kg3 {[%clk 0:00:01]} 63. Kd3 {[%clk 0:00:07]}  Rg4 {[%clk 0:00:02]} 64. Ke3 {[%clk 0:00:06]}  Ra4 {[%clk 0:00:02]} 65. Rg5+ {[%clk 0:00:05]}  Rg4 {[%clk 0:00:02]} 66. Re5 {[%clk 0:00:03]}  Kg2 {[%clk 0:00:02]} 67. Ke2 {[%clk 0:00:02]}  g5 {[%clk 0:00:02]} 68. Ke3 {[%clk 0:00:02]}  Rg3+ {[%clk 0:00:02]} 69. Ke2 {[%clk 0:00:02]}  g4 {[%clk 0:00:03]} 70. Ke1 {[%clk 0:00:02]}  Ra3 {[%clk 0:00:02]} 71. Re2+ {[%clk 0:00:01]}  Kg1 {[%clk 0:00:03]} 0-1


[Site "https://www.chess.com"]

[Event "Titled Tuesday Blitz March 01 Early 2022"]
[White "Muzzi, Eduardo"]
[Black "Federzoni, Enzo"]
[WhiteFideId "3001253"]
[BlackFideId "2173301"]
[WhiteElo "1932"]
[BlackElo "1956"]
[Result "1-0"]
[Round "02"]
[TimeControl "180+1"]
[Date "2022.03.01"]
[WhiteClock "0:01:15"]
[BlackClock "0:00:11"]

1. e4 {[%clk 0:02:57]}  c5 {[%clk 0:02:59]} 2. Nc3 {[%clk 0:02:55]}  e6 {[%clk 0:02:57]} 3. Bc4 {[%clk 0:02:54]}  Nc6 {[%clk 0:02:58]} 4. f4 {[%clk 0:02:53]}  a6 {[%clk 0:02:50]} 5. a4 {[%clk 0:02:52]}  d6 {[%clk 0:02:34]} 6. Nf3 {[%clk 0:02:53]}  Nf6 {[%clk 0:02:34]} 7. d3 {[%clk 0:02:50]}  Be7 {[%clk 0:02:35]} 8. O-O {[%clk 0:02:49]}  Nd4 {[%clk 0:02:34]} 9. Nxd4 {[%clk 0:02:45]}  cxd4 {[%clk 0:02:35]} 10. Ne2 {[%clk 0:02:45]}  e5 {[%clk 0:02:24]} 11. f5 {[%clk 0:02:44]}  Rb8 {[%clk 0:02:21]} 12. Bg5 {[%clk 0:02:34]}  b5 {[%clk 0:02:11]} 13. axb5 {[%clk 0:02:33]}  axb5 {[%clk 0:02:11]} 14. Bb3 {[%clk 0:02:33]}  Bb7 {[%clk 0:02:09]} 15. Ng3 {[%clk 0:02:08]}  d5 {[%clk 0:01:53]} 16. exd5 {[%clk 0:02:06]}  Bxd5 {[%clk 0:01:53]} 17. Bxd5 {[%clk 0:01:54]}  Nxd5 {[%clk 0:01:54]} 18. Bxe7 {[%clk 0:01:32]}  Qxe7 {[%clk 0:01:55]} 19. Qf3 {[%clk 0:01:32]}  Qb7 {[%clk 0:01:34]} 20. Ne4 {[%clk 0:01:29]}  O-O {[%clk 0:00:59]} 21. f6 {[%clk 0:01:26]}  Nxf6 {[%clk 0:00:20]} 22. Nxf6+ {[%clk 0:01:18]}  gxf6 {[%clk 0:00:21]} 23. Qxf6 {[%clk 0:01:18]}  Rbe8 {[%clk 0:00:20]} 24. Rf3 {[%clk 0:01:16]}  Qd5 {[%clk 0:00:11]} 25. Rg3# {[%clk 0:01:15]} 1-0


[Site "https://www.chess.com"]

[Event "Titled Tuesday Blitz March 01 Early 2022"]
[White "Nakamura, Hikaru"]
[Black "Kretov, Evgenij"]
[WhiteFideId "2016192"]
[BlackFideId "4167821"]
[WhiteElo "3172"]
[BlackElo "2659"]
[Result "1-0"]
[Round "02"]
[TimeControl "180+1"]
[Date "2022.03.01"]
[WhiteClock "0:00:18"]
[BlackClock "0:00:11"]

1. Nf3 {[%clk 0:03:00]}  c5 {[%clk 0:02:59]} 2. b3 {[%clk 0:03:01]}  Nf6 {[%clk 0:02:58]} 3. Bb2 {[%clk 0:03:01]}  e6 {[%clk 0:02:59]} 4. e3 {[%clk 0:03:00]}  b6 {[%clk 0:02:59]} 5. d4 {[%clk 0:02:58]}  Bb7 {[%clk 0:02:58]} 6. Bd3 {[%clk 0:02:57]}  Be7 {[%clk 0:02:58]} 7. O-O {[%clk 0:02:56]}  O-O {[%clk 0:02:57]} 8. Nbd2 {[%clk 0:02:56]}  Nc6 {[%clk 0:02:54]} 9. dxc5 {[%clk 0:02:55]}  Bxc5 {[%clk 0:02:54]} 10. a3 {[%clk 0:02:54]}  a6 {[%clk 0:02:48]} 11. c4 {[%clk 0:02:48]}  Be7 {[%clk 0:02:47]} 12. Qc2 {[%clk 0:02:47]}  h6 {[%clk 0:02:44]} 13. Rfd1 {[%clk 0:02:47]}  Qc7 {[%clk 0:02:43]} 14. Rac1 {[%clk 0:02:45]}  Rac8 {[%clk 0:02:43]} 15. Qb1 {[%clk 0:02:20]}  Rfd8 {[%clk 0:02:33]} 16. Ne4 {[%clk 0:02:11]}  Nxe4 {[%clk 0:02:25]} 17. Bxe4 {[%clk 0:02:12]}  b5 {[%clk 0:02:03]} 18. cxb5 {[%clk 0:02:02]}  axb5 {[%clk 0:02:02]} 19. Ne5 {[%clk 0:02:03]}  Bf6 {[%clk 0:01:38]} 20. Bh7+ {[%clk 0:01:47]}  Kf8 {[%clk 0:01:38]} 21. Nxf7 {[%clk 0:01:25]}  Bxb2 {[%clk 0:01:33]} 22. Nxd8 {[%clk 0:00:39]}  Bxc1 {[%clk 0:01:22]} 23. Nxb7 {[%clk 0:00:39]}  Bxa3 {[%clk 0:01:17]} 24. Qe4 {[%clk 0:00:39]}  Qxb7 {[%clk 0:01:00]} 25. Qf4+ {[%clk 0:00:39]}  Ke7 {[%clk 0:01:00]} 26. Qh4+ {[%clk 0:00:40]}  g5 {[%clk 0:00:57]} 27. Qxh6 {[%clk 0:00:39]}  Kd8 {[%clk 0:00:53]} 28. Qxe6 {[%clk 0:00:38]}  Ne7 {[%clk 0:00:42]} 29. Qf6 {[%clk 0:00:26]}  Kc7 {[%clk 0:00:37]} 30. Qxg5 {[%clk 0:00:25]}  Kb8 {[%clk 0:00:26]} 31. h4 {[%clk 0:00:25]}  Nc6 {[%clk 0:00:20]} 32. Be4 {[%clk 0:00:25]}  Bb4 {[%clk 0:00:14]} 33. Bxc6 {[%clk 0:00:21]}  Qxc6 {[%clk 0:00:14]} 34. Qf4+ {[%clk 0:00:21]}  Kb7 {[%clk 0:00:12]} 35. Qxb4 {[%clk 0:00:20]}  Rg8 {[%clk 0:00:12]} 36. g3 {[%clk 0:00:19]}  Rf8 {[%clk 0:00:11]} 37. Qxf8 {[%clk 0:00:18]} 1-0


[Site "https://www.chess.com"]

[Event "Titled Tuesday Blitz March 01 Early 2022"]
[White "Nan, M K Khine Hlyan"]
[Black "Nasyrova, Ekaterina"]
[WhiteFideId "13002899"]
[BlackFideId "44157797"]
[WhiteElo "1943"]
[BlackElo "2068"]
[Result "0-1"]
[Round "02"]
[TimeControl "180+1"]
[Date "2022.03.01"]
[WhiteClock "0:01:52"]
[BlackClock "0:01:01"]

1. e4 {[%clk 0:02:58]}  e5 {[%clk 0:02:59]} 2. Nf3 {[%clk 0:02:58]}  Nc6 {[%clk 0:03:00]} 3. Bc4 {[%clk 0:02:56]}  Bc5 {[%clk 0:02:59]} 4. c3 {[%clk 0:02:56]}  Nf6 {[%clk 0:02:59]} 5. a4 {[%clk 0:02:56]}  a5 {[%clk 0:02:55]} 6. d3 {[%clk 0:02:54]}  O-O {[%clk 0:02:53]} 7. Bb3 {[%clk 0:02:43]}  d5 {[%clk 0:02:50]} 8. O-O {[%clk 0:02:40]}  dxe4 {[%clk 0:02:48]} 9. Nxe5 {[%clk 0:02:36]}  Nxe5 {[%clk 0:02:42]} 10. d4 {[%clk 0:02:36]}  Bg4 {[%clk 0:02:22]} 11. Qc2 {[%clk 0:02:20]}  Bd6 {[%clk 0:02:17]} 12. dxe5 {[%clk 0:02:18]}  Bxe5 {[%clk 0:02:18]} 13. Nd2 {[%clk 0:02:14]}  Be2 {[%clk 0:02:10]} 14. Re1 {[%clk 0:02:12]}  Bd3 {[%clk 0:02:10]} 15. Qd1 {[%clk 0:02:13]}  Qd6 {[%clk 0:02:09]} 16. g3 {[%clk 0:02:09]}  Qc6 {[%clk 0:01:50]} 17. Bc2 {[%clk 0:02:01]}  Rad8 {[%clk 0:01:07]} 18. Bxd3 {[%clk 0:01:58]}  Rxd3 {[%clk 0:01:07]} 19. Qh5 {[%clk 0:01:52]}  Nxh5 {[%clk 0:01:01]} 0-1


[Site "https://www.chess.com"]

[Event "Titled Tuesday Blitz March 01 Early 2022"]
[White "Nozdrachev, Leonid"]
[Black "Wagner, Dennis"]
[WhiteFideId "24113433"]
[BlackFideId "24650684"]
[WhiteElo "2124"]
[BlackElo "2355"]
[Result "1/2-1/2"]
[Round "02"]
[TimeControl "180+1"]
[Date "2022.03.01"]
[WhiteClock "0:00:45"]
[BlackClock "0:00:27"]

1. e4 {[%clk 0:02:58]}  c5 {[%clk 0:02:59]} 2. c3 {[%clk 0:02:57]}  d5 {[%clk 0:02:55]} 3. exd5 {[%clk 0:02:56]}  Qxd5 {[%clk 0:02:56]} 4. d4 {[%clk 0:02:57]}  Nf6 {[%clk 0:02:56]} 5. Nf3 {[%clk 0:02:57]}  e6 {[%clk 0:02:56]} 6. Bd3 {[%clk 0:02:56]}  Be7 {[%clk 0:02:49]} 7. O-O {[%clk 0:02:55]}  O-O {[%clk 0:02:49]} 8. Be3 {[%clk 0:02:56]}  cxd4 {[%clk 0:02:37]} 9. cxd4 {[%clk 0:02:56]}  Nc6 {[%clk 0:02:37]} 10. Nc3 {[%clk 0:02:55]}  Qd6 {[%clk 0:02:38]} 11. a3 {[%clk 0:02:50]}  b6 {[%clk 0:02:38]} 12. Rc1 {[%clk 0:02:48]}  Bb7 {[%clk 0:02:38]} 13. Bb1 {[%clk 0:02:48]}  Rac8 {[%clk 0:02:36]} 14. Qd3 {[%clk 0:02:47]}  g6 {[%clk 0:02:34]} 15. Ba2 {[%clk 0:02:42]}  Rfd8 {[%clk 0:02:31]} 16. Rfd1 {[%clk 0:02:42]}  Rd7 {[%clk 0:02:22]} 17. h3 {[%clk 0:02:41]}  Bf8 {[%clk 0:02:23]} 18. Bg5 {[%clk 0:02:34]}  Bg7 {[%clk 0:02:20]} 19. Bxf6 {[%clk 0:02:33]}  Bxf6 {[%clk 0:02:21]} 20. Ne4 {[%clk 0:02:32]}  Qe7 {[%clk 0:02:20]} 21. Nxf6+ {[%clk 0:02:26]}  Qxf6 {[%clk 0:02:21]} 22. Qe4 {[%clk 0:02:10]}  Ne7 {[%clk 0:01:45]} 23. Rxc8+ {[%clk 0:02:06]}  Nxc8 {[%clk 0:01:46]} 24. Qe5 {[%clk 0:01:45]}  Qxe5 {[%clk 0:01:45]} 25. Nxe5 {[%clk 0:01:45]}  Rc7 {[%clk 0:01:45]} 26. d5 {[%clk 0:01:41]}  exd5 {[%clk 0:01:38]} 27. Bxd5 {[%clk 0:01:41]}  Bxd5 {[%clk 0:01:32]} 28. Rxd5 {[%clk 0:01:42]}  f6 {[%clk 0:01:26]} 29. Ng4 {[%clk 0:01:20]}  Kf7 {[%clk 0:01:22]} 30. g3 {[%clk 0:01:14]}  h5 {[%clk 0:01:21]} 31. Ne3 {[%clk 0:01:13]}  Ne7 {[%clk 0:01:12]} 32. Rd8 {[%clk 0:01:11]}  Rc1+ {[%clk 0:00:46]} 33. Kg2 {[%clk 0:01:11]}  Rb1 {[%clk 0:00:46]} 34. Rd7 {[%clk 0:01:08]}  Ke6 {[%clk 0:00:38]} 35. Rxa7 {[%clk 0:01:07]}  Rxb2 {[%clk 0:00:38]} 36. a4 {[%clk 0:00:58]}  Nf5 {[%clk 0:00:25]} 37. Nxf5 {[%clk 0:00:52]}  Kxf5 {[%clk 0:00:26]} 38. a5 {[%clk 0:00:48]}  bxa5 {[%clk 0:00:26]} 39. Rxa5+ {[%clk 0:00:48]}  Ke6 {[%clk 0:00:26]} 40. Ra6+ {[%clk 0:00:47]}  Kf5 {[%clk 0:00:26]} 41. Ra5+ {[%clk 0:00:46]}  Ke6 {[%clk 0:00:27]} 42. Ra6+ {[%clk 0:00:46]}  Kf5 {[%clk 0:00:27]} 43. Ra5+ {[%clk 0:00:45]} 1/2-1/2


[Site "https://www.chess.com"]

[Event "Titled Tuesday Blitz March 01 Early 2022"]
[White "Ooi, Zhi Yang"]
[Black "Obolenskikh, Dmitry"]
[WhiteFideId "5709270"]
[BlackFideId "4156013"]
[WhiteElo "1802"]
[BlackElo "2512"]
[Result "0-1"]
[Round "02"]
[TimeControl "180+1"]
[Date "2022.03.01"]
[WhiteClock "0:00:01"]
[BlackClock "0:00:18"]

1. d4 {[%clk 0:03:00]}  d5 {[%clk 0:02:59]} 2. c4 {[%clk 0:03:01]}  e6 {[%clk 0:02:59]} 3. Nc3 {[%clk 0:03:01]}  c6 {[%clk 0:03:00]} 4. Nf3 {[%clk 0:02:58]}  dxc4 {[%clk 0:03:00]} 5. a4 {[%clk 0:02:50]}  Bb4 {[%clk 0:02:58]} 6. e3 {[%clk 0:02:47]}  b5 {[%clk 0:02:55]} 7. Be2 {[%clk 0:02:35]}  Bb7 {[%clk 0:02:47]} 8. O-O {[%clk 0:02:32]}  a6 {[%clk 0:02:33]} 9. Ne5 {[%clk 0:02:15]}  Nd7 {[%clk 0:02:30]} 10. f4 {[%clk 0:02:07]}  Ngf6 {[%clk 0:02:30]} 11. Bf3 {[%clk 0:02:04]}  Qb6 {[%clk 0:02:26]} 12. g4 {[%clk 0:01:38]}  Rd8 {[%clk 0:02:04]} 13. g5 {[%clk 0:01:27]}  Nd5 {[%clk 0:02:01]} 14. Bxd5 {[%clk 0:01:04]}  cxd5 {[%clk 0:01:55]} 15. Ne2 {[%clk 0:01:01]}  O-O {[%clk 0:01:46]} 16. Ng3 {[%clk 0:00:58]}  Be7 {[%clk 0:01:28]} 17. Qh5 {[%clk 0:00:52]}  b4 {[%clk 0:01:15]} 18. Rf3 {[%clk 0:00:34]}  f5 {[%clk 0:00:30]} 19. Nxd7 {[%clk 0:00:19]}  Rxd7 {[%clk 0:00:30]} 20. Nf1 {[%clk 0:00:19]}  g6 {[%clk 0:00:27]} 21. Qh4 {[%clk 0:00:18]}  a5 {[%clk 0:00:27]} 22. Nd2 {[%clk 0:00:13]}  h5 {[%clk 0:00:26]} 23. Rh3 {[%clk 0:00:06]}  Bd6 {[%clk 0:00:26]} 24. Nf3 {[%clk 0:00:04]}  Ba6 {[%clk 0:00:26]} 25. Qf2 {[%clk 0:00:03]}  Rc8 {[%clk 0:00:23]} 26. Nh4 {[%clk 0:00:04]}  Kg7 {[%clk 0:00:20]} 27. Qf3 {[%clk 0:00:04]}  Rh8 {[%clk 0:00:20]} 28. Bd2 {[%clk 0:00:04]}  Rc7 {[%clk 0:00:20]} 29. Rc1 {[%clk 0:00:04]}  c3 {[%clk 0:00:20]} 30. bxc3 {[%clk 0:00:04]}  b3 {[%clk 0:00:21]} 31. Rb1 {[%clk 0:00:02]}  b2 {[%clk 0:00:19]} 32. Qe2 {[%clk 0:00:01]}  Bxe2 {[%clk 0:00:18]} 0-1


[Site "https://www.chess.com"]

[Event "Titled Tuesday Blitz March 01 Early 2022"]
[White "Prieto Aranguren, Alain"]
[Black "Yurtseven, Melih"]
[WhiteFideId "2268906"]
[BlackFideId "6312160"]
[WhiteElo "2235"]
[BlackElo "2160"]
[Result "0-1"]
[Round "02"]
[TimeControl "180+1"]
[Date "2022.03.01"]
[WhiteClock "0:00:14"]
[BlackClock "0:00:19"]

1. d4 {[%clk 0:02:51]}  Nf6 {[%clk 0:02:57]} 2. c4 {[%clk 0:02:35]}  g6 {[%clk 0:02:57]} 3. Nc3 {[%clk 0:02:17]}  d5 {[%clk 0:02:56]} 4. Nf3 {[%clk 0:02:16]}  Bg7 {[%clk 0:02:55]} 5. Bg5 {[%clk 0:02:15]}  c6 {[%clk 0:02:47]} 6. cxd5 {[%clk 0:02:13]}  cxd5 {[%clk 0:02:46]} 7. Qb3 {[%clk 0:02:13]}  O-O {[%clk 0:02:42]} 8. e3 {[%clk 0:02:11]}  Nc6 {[%clk 0:02:41]} 9. Bxf6 {[%clk 0:02:08]}  Bxf6 {[%clk 0:02:42]} 10. Nxd5 {[%clk 0:02:07]}  Bg7 {[%clk 0:02:41]} 11. Nc3 {[%clk 0:02:06]}  Na5 {[%clk 0:02:37]} 12. Qd1 {[%clk 0:02:06]}  Qb6 {[%clk 0:02:34]} 13. Rb1 {[%clk 0:02:01]}  Bf5 {[%clk 0:02:26]} 14. Bd3 {[%clk 0:01:59]}  Bxd3 {[%clk 0:02:22]} 15. Qxd3 {[%clk 0:01:57]}  Rfd8 {[%clk 0:02:22]} 16. O-O {[%clk 0:01:57]}  Rac8 {[%clk 0:02:22]} 17. Qb5 {[%clk 0:01:51]}  Qxb5 {[%clk 0:02:12]} 18. Nxb5 {[%clk 0:01:50]}  a6 {[%clk 0:02:12]} 19. Nc3 {[%clk 0:01:49]}  Nc4 {[%clk 0:02:12]} 20. Rfc1 {[%clk 0:01:44]}  b5 {[%clk 0:02:12]} 21. Ne4 {[%clk 0:01:37]}  e5 {[%clk 0:01:53]} 22. dxe5 {[%clk 0:01:36]}  Nxe5 {[%clk 0:01:54]} 23. Nxe5 {[%clk 0:01:36]}  Bxe5 {[%clk 0:01:54]} 24. b4 {[%clk 0:01:33]}  Rc4 {[%clk 0:01:51]} 25. Nc5 {[%clk 0:01:28]}  Rd2 {[%clk 0:01:43]} 26. a3 {[%clk 0:01:19]}  Bb2 {[%clk 0:01:28]} 27. Rxc4 {[%clk 0:01:02]}  bxc4 {[%clk 0:01:28]} 28. Ne4 {[%clk 0:01:02]}  Rc2 {[%clk 0:01:24]} 29. a4 {[%clk 0:01:01]}  f5 {[%clk 0:01:18]} 30. Nc5 {[%clk 0:00:51]}  c3 {[%clk 0:00:58]} 31. b5 {[%clk 0:00:48]}  axb5 {[%clk 0:00:58]} 32. axb5 {[%clk 0:00:48]}  Rd2 {[%clk 0:00:58]} 33. Nb3 {[%clk 0:00:44]}  Rd8 {[%clk 0:00:37]} 34. Kf1 {[%clk 0:00:15]}  f4 {[%clk 0:00:23]} 35. Nd4 {[%clk 0:00:13]}  fxe3 {[%clk 0:00:20]} 36. fxe3 {[%clk 0:00:14]}  Kf7 {[%clk 0:00:19]} 0-1


[Site "https://www.chess.com"]

[Event "Titled Tuesday Blitz March 01 Early 2022"]
[White "Reprintsev, Alexander"]
[Black "Dovbnia, Nikita"]
[WhiteFideId "14100541"]
[BlackFideId "54104599"]
[WhiteElo "2126"]
[BlackElo "2111"]
[Result "1-0"]
[Round "02"]
[TimeControl "180+1"]
[Date "2022.03.01"]
[WhiteClock "0:01:24"]
[BlackClock "0:00:35"]

1. e4 {[%clk 0:03:00]}  c5 {[%clk 0:02:59]} 2. b3 {[%clk 0:02:52]}  Nc6 {[%clk 0:02:58]} 3. Bb2 {[%clk 0:02:51]}  e5 {[%clk 0:02:59]} 4. f4 {[%clk 0:02:51]}  d6 {[%clk 0:02:59]} 5. Qf3 {[%clk 0:02:50]}  Nf6 {[%clk 0:02:58]} 6. Bb5 {[%clk 0:02:49]}  Bd7 {[%clk 0:02:46]} 7. Ne2 {[%clk 0:02:49]}  Qc7 {[%clk 0:02:44]} 8. Nbc3 {[%clk 0:02:41]}  Nd4 {[%clk 0:02:40]} 9. Nxd4 {[%clk 0:02:41]}  cxd4 {[%clk 0:02:38]} 10. Bxd7+ {[%clk 0:02:41]}  Nxd7 {[%clk 0:02:39]} 11. Nd5 {[%clk 0:02:41]}  Qxc2 {[%clk 0:02:26]} 12. O-O {[%clk 0:02:40]}  Qxb2 {[%clk 0:02:08]} 13. Nc7+ {[%clk 0:02:30]}  Kd8 {[%clk 0:02:08]} 14. Nxa8 {[%clk 0:02:29]}  Be7 {[%clk 0:02:07]} 15. fxe5 {[%clk 0:02:17]}  Nxe5 {[%clk 0:02:06]} 16. Qh3 {[%clk 0:02:14]}  Qxd2 {[%clk 0:01:39]} 17. Rac1 {[%clk 0:02:12]}  Nc6 {[%clk 0:01:38]} 18. Rfd1 {[%clk 0:01:51]}  Qf4 {[%clk 0:01:26]} 19. b4 {[%clk 0:01:42]}  Bg5 {[%clk 0:01:21]} 20. Kh1 {[%clk 0:01:35]}  Qxc1 {[%clk 0:00:59]} 21. Rxc1 {[%clk 0:01:34]}  Bxc1 {[%clk 0:01:00]} 22. b5 {[%clk 0:01:34]}  Ne5 {[%clk 0:00:58]} 23. b6 {[%clk 0:01:29]}  axb6 {[%clk 0:00:57]} 24. Nxb6 {[%clk 0:01:28]}  Kc7 {[%clk 0:00:58]} 25. Nd5+ {[%clk 0:01:27]}  Kc6 {[%clk 0:00:58]} 26. Qb3 {[%clk 0:01:25]}  d3 {[%clk 0:00:56]} 27. Qb6+ {[%clk 0:01:23]}  Kd7 {[%clk 0:00:52]} 28. Qxb7+ {[%clk 0:01:24]}  Kd8 {[%clk 0:00:37]} 29. Qc7+ {[%clk 0:01:23]}  Ke8 {[%clk 0:00:35]} 30. Qe7# {[%clk 0:01:24]} 1-0


[Site "https://www.chess.com"]